[Event "Portugal Open 2020"]
[Site "Lisbon"]
[Date "2020.01.26"]
[Round "2.16"]
[White "Pires, Emanuel Joao Robarts"]
[Black "Janik, Igor"]
[Result "0-1"]
[ECO "B10"]
[WhiteElo "2112"]
[BlackElo "2453"]
[Annotator "ChessBase"]
[PlyCount "100"]
[EventDate "2020.01.25"]
[EventType "swiss"]
[EventCountry "POR"]
[SourceTitle "playchess.com"]
[Source "ChessBase"]
[SourceQuality "1"]
[TimeControl "5400+30"]

1. e4 c6 2. Bc4 d5 {[%emt 0:00:00]} 3. Bb3 {[%emt 0:15:14]} dxe4 {[%emt 0:00:00]} 4. Qh5 {[%emt 0:00:08]} g6 {[%emt 0:00:10]} 5. Qh4 {[%emt 0:00:06]} Nf6 {[%emt 0:00:14]} 6. f3 {[%emt 0:00:07]} Bf5 {[%emt 0:03:33]} 7. Nc3 {[%emt 0:05:36]} exf3 {[%emt 0:03:47]} 8. Nxf3 {[%emt 0:01:01]} Bg7 {[%emt 0:00:48]} 9. O-O {[%emt 0:00:11]} e6 {[%emt 0:01:50]} 10. d4 {[%emt 0:01:20]} Nbd7 {[%emt 0:02:35]} 11. Bh6 {[%emt 0:04:31]} O-O {[%emt 0:15:56]} 12. Ng5 {[%emt 0:01:28]} Nh5 {[%emt 0:05:36]} 13. Bxg7 {[%emt 0:01:12]} Kxg7 {[%emt 0:00:02]} 14. g4 {[%emt 0:30:17]} h6 {[%emt 0:01:14]} 15. Nxe6+ {[%emt 0:03:35]} fxe6 {[%emt 0:06:16]} 16. Qxd8 {[%emt 0:01:05]} Raxd8 {[%emt 0:00:20]} 17. gxf5 {[%emt 0:00:37]} exf5 {[%emt 0:00:15]} 18. Rae1 {[%emt 0:06:16]} Rfe8 {[%emt 0:00:59]} 19. d5 {[%emt 0:01:19]} Ne5 {[%emt 0:04:05]} 20. Re3 {[%emt 0:04:38]} Nf6 {[%emt 0:01:29]} 21. dxc6 {[%emt 0:01:53]} bxc6 {[%emt 0:00:48]} 22. h3 {[%emt 0:02:19]} h5 {[%emt 0:02:43]} 23. Kh1 {[%emt 0:01:59]} Rd2 {[%emt 0:01:55]} 24. Nb1 {[%emt 0:09:18]} Rd4 {[%emt 0:02:21]} 25. Nc3 {[%emt 0:00:01]} Nfd7 {[%emt 0:04:09]} 26. Rfe1 {[%emt 0:02:40]} Kf6 {[%emt 0:00:13]} 27. Ba4 {[%emt 0:01:08]} Re6 {[%emt 0:01:14]} 28. Bb3 {[%emt 0:00:55]} Red6 {[%emt 0:00:09]} 29. Rf1 {[%emt 0:01:32]} Nc5 {[%emt 0:00:26]} 30. Rfe1 {[%emt 0:01:39]} Nxb3 {[%emt 0:02:06]} 31. axb3 {[%emt 0:00:02]} Nf7 {[%emt 0:00:08]} 32. Ra1 {[%emt 0:01:21]} Rd2 {[%emt 0:00:38]} 33. Rxa7 {[%emt 0:02:17]} Rxc2 {[%emt 0:00:11]} 34. Ra1 {[%emt 0:00:37]} Rdd2 {[%emt 0:00:41]} 35. Rae1 {[%emt 0:00:28]} Ng5 {[%emt 0:00:18]} 36. R1e2 {[%emt 0:00:28]} Rxe2 {[%emt 0:00:23]} 37. Nxe2 {[%emt 0:00:16]} Rxb2 {[%emt 0:00:17]} 38. Nd4 {[%emt 0:00:08]} c5 {[%emt 0:00:09]} 39. Nc6 {[%emt 0:00:08]} Ne4 {[%emt 0:00:09]} 40. Kg1 {[%emt 0:00:43]} h4 {[%emt 0:00:20]} 41. Nb8 {[%emt 0:00:24]} Kg5 {[%emt 0:00:16]} 42. Rf3 {[%emt 0:00:22]} c4 {[%emt 0:00:09]} 43. Nc6 {[%emt 0:01:04]} Rxb3 {[%emt 0:00:07]} 44. Rf1 {[%emt 0:00:02]} Rxh3 {[%emt 0:00:08]} 45. Ne5 {[%emt 0:00:09]} Rg3+ {[%emt 0:00:11]} 46. Kh2 {[%emt 0:00:01]} Nd2 {[%emt 0:00:25]} 47. Rd1 {[%emt 0:02:05]} c3 {[%emt 0:00:09]} 48. Nf3+ {[%emt 0:00:37]} Nxf3+ {[%emt 0:00:10]} 49. Kh1 {[%emt 0:00:01]} c2 {[%emt 0:00:14]} 50. Rf1 {[%emt 0:00:46]} Rg1+ {[%emt 0:00:05]} 0-1

[Event "Portugal Open 2020"]
[Site "Lisbon"]
[Date "2020.01.26"]
[Round "2.17"]
[White "Martin Duque, Jesus"]
[Black "Correia, Mario"]
[Result "1-0"]
[ECO "B36"]
[WhiteElo "2447"]
[BlackElo "2133"]
[Annotator "NA"]
[PlyCount "61"]
[EventDate "2020.01.25"]
[EventType "swiss"]
[EventCountry "POR"]
[SourceTitle "playchess.com"]
[Source "ChessBase"]
[SourceQuality "1"]
[TimeControl "5400+30"]

1. e4 c5 2. Nf3 Nc6 3. d4 cxd4 4. Nxd4 g6 5. c4 Nf6 6. Nc3 d6 7. Be2 Nxd4 8. Qxd4 Bg7 9. Be3 O-O 10. Qd2 a5 11. O-O a4 12. Bd4 Bd7 13. b4 axb3 14. axb3 Bc6 15. Qc2 Nd7 16. Bxg7 Kxg7 17. Rad1 Qb6 18. Nd5 Bxd5 19. exd5 Nc5 20. Qc3+ Kg8 21. b4 Ne4 22. Qc2 f5 23. Qb3 Nc5 24. Qb2 Ra4 25. Rb1 Na6 26. c5 dxc5 27. d6 Qxb4 28. dxe7 Re8 29. Qf6 Qd4 30. Qe6+ Kg7 31. Rxb7 1-0

[Event "Portugal Open 2020"]
[Site "Lisbon"]
[Date "2020.01.26"]
[Round "2.18"]
[White "Fernandes, Joao Pedro Murtinho"]
[Black "Stachowiak, Kamil"]
[Result "0-1"]
[ECO "B43"]
[WhiteElo "2099"]
[BlackElo "2446"]
[Annotator "NA"]
[PlyCount "64"]
[EventDate "2020.01.25"]
[EventType "swiss"]
[EventCountry "POR"]
[SourceTitle "playchess.com"]
[Source "ChessBase"]
[SourceQuality "1"]
[TimeControl "5400+30"]

1. e4 {[%emt 0:00:00]} c5 {[%emt 0:00:00]} 2. Nf3 {[%emt 0:00:00]} e6 {[%emt 0:00:00]} 3. d4 {[%emt 0:00:04]} cxd4 {[%emt 0:00:00]} 4. Nxd4 {[%emt 0:00:05]} a6 {[%emt 0:00:00]} 5. Nc3 {[%emt 0:00:17]} Qc7 {[%emt 0:00:07]} 6. Bd3 {[%emt 0:00:20]} Nc6 {[%emt 0:00:09]} 7. Nb3 {[%emt 0:01:29]} Nf6 {[%emt 0:00:46]} 8. O-O {[%emt 0:01:08]} b5 {[%emt 0:02:14]} 9. f4 {[%emt 0:02:05]} b4 {[%emt 0:10:23]} 10. e5 {[%emt 0:05:44]} bxc3 {[%emt 0:02:49]} 11. exf6 {[%emt 0:00:06]} gxf6 {[%emt 0:01:00]} 12. bxc3 {[%emt 0:00:22]} Bb7 {[%emt 0:02:32]} 13. Qe2 {[%emt 0:12:52]} Ne7 {[%emt 0:04:20]} 14. c4 {[%emt 0:17:19]} Rg8 {[%emt 0:07:49]} 15. Be4 {[%emt 0:01:58]} Nf5 {[%emt 0:12:26]} 16. Bd2 {[%emt 0:09:09]} Bxe4 {[%emt 0:01:51]} 17. Qxe4 {[%emt 0:00:12]} Rc8 {[%emt 0:00:24]} 18. Rae1 {[%emt 0:18:21]} Be7 {[%emt 0:01:42]} 19. c5 {[%emt 0:04:56]} Bxc5+ {[%emt 0:01:53]} 20. Kh1 {[%emt 0:00:09]} Be7 {[%emt 0:02:54]} 21. Nd4 {[%emt 0:05:12]} Nxd4 22. Qxd4 {[%emt 0:00:05]} Qc4 {[%emt 0:05:22]} 23. Qxc4 {[%emt 0:02:48]} Rxc4 {[%emt 0:00:06]} 24. Rb1 {[%emt 0:00:12]} Bd6 {[%emt 0:02:03]} 25. Rb6 {[%emt 0:03:46]} Ke7 {[%emt 0:00:18]} 26. c3 {[%emt 0:00:54]} Ra4 {[%emt 0:00:49]} 27. Be3 {[%emt 0:00:36]} Rb8 {[%emt 0:04:48]} 28. Rxb8 {[%emt 0:00:37]} Bxb8 {[%emt 0:00:04]} 29. Rf2 {[%emt 0:00:35]} Rc4 {[%emt 0:00:17]} 30. Rc2 {[%emt 0:00:45]} Bxf4 {[%emt 0:00:34]} 31. Bxf4 {[%emt 0:00:16]} Rxf4 {[%emt 0:00:05]} 32. g3 {[%emt 0:00:09]} Rc4 {[%emt 0:00:11]} 0-1

[Event "Portugal Open 2020"]
[Site "Lisbon"]
[Date "2020.01.26"]
[Round "2.19"]
[White "Campora, Daniel H."]
[Black "Silva, Goncalo Nuno Neto Pi"]
[Result "1-0"]
[ECO "B31"]
[WhiteElo "2420"]
[BlackElo "2133"]
[Annotator "NA"]
[PlyCount "43"]
[EventDate "2020.01.25"]
[EventType "swiss"]
[EventCountry "POR"]
[SourceTitle "playchess.com"]
[Source "ChessBase"]
[SourceQuality "1"]
[TimeControl "5400+30"]

1. e4 {[%emt 0:00:00]} c5 {[%emt 0:00:00]} 2. Nf3 {[%emt 0:00:00]} Nc6 {[%emt 0:00:00]} 3. Bb5 {[%emt 0:00:00]} g6 {[%emt 0:00:00]} 4. O-O {[%emt 0:00:41]} Bg7 {[%emt 0:00:01]} 5. Re1 {[%emt 0:00:20]} Nf6 {[%emt 0:00:40]} 6. d3 {[%emt 0:02:41]} O-O {[%emt 0:00:32]} 7. h3 {[%emt 0:01:21]} Qc7 {[%emt 0:19:54]} 8. e5 {[%emt 0:11:31]} Nd5 {[%emt 0:01:13]} 9. c4 {[%emt 0:00:09]} Nb6 10. Bf4 {[%emt 0:02:01]} Nd4 {[%emt 0:06:43]} 11. Nxd4 {[%emt 0:00:51]} cxd4 {[%emt 0:00:06]} 12. Nd2 {[%emt 0:00:03]} f6 {[%emt 0:06:32]} 13. exf6 {[%emt 0:09:27]} Qxf4 {[%emt 0:00:08]} 14. fxg7 {[%emt 0:00:02]} Qxf2+ {[%emt 0:01:28]} 15. Kh1 {[%emt 0:00:07]} Kxg7 {[%emt 0:00:43]} 16. Rxe7+ {[%emt 0:00:41]} Kh8 {[%emt 0:00:06]} 17. Re2 {[%emt 0:06:48]} Qf5 {[%emt 0:02:13]} 18. Qg1 {[%emt 0:09:19]} Kg7 {[%emt 0:19:09]} 19. Rf1 {[%emt 0:09:20]} Qc5 {[%emt 0:01:11]} 20. Rxf8 {[%emt 0:01:06]} Kxf8 {[%emt 0:00:55]} 21. b4 {[%emt 0:01:08]} Qh5 {[%emt 0:01:41]} 22. Qf2+ {[%emt 0:00:28]} 1-0

[Event "Portugal Open 2020"]
[Site "Lisbon"]
[Date "2020.01.26"]
[Round "2.20"]
[White "Fernandes, Alberto"]
[Black "Damaso, Rui"]
[Result "0-1"]
[ECO "A22"]
[WhiteElo "2092"]
[BlackElo "2420"]
[Annotator "NA"]
[PlyCount "32"]
[EventDate "2020.01.25"]
[EventType "swiss"]
[EventCountry "POR"]
[SourceTitle "playchess.com"]
[Source "ChessBase"]
[SourceQuality "1"]
[TimeControl "5400+30"]

1. c4 {[%emt 0:20:26]} e5 {[%emt 0:16:07]} 2. Nc3 {[%emt 0:02:45]} Nf6 {[%emt 0:00:15]} 3. e4 {[%emt 0:01:30]} Bc5 {[%emt 0:03:47]} 4. g3 {[%emt 0:01:37]} c6 {[%emt 0:01:33]} 5. Bg2 {[%emt 0:01:05]} b5 {[%emt 0:21:10]} 6. d3 {[%emt 0:21:51]} d6 {[%emt 0:05:30]} 7. Nge2 {[%emt 0:07:19]} Qb6 {[%emt 0:01:50]} 8. O-O {[%emt 0:00:37]} Nbd7 {[%emt 0:03:32]} 9. h3 {[%emt 0:01:11]} a5 {[%emt 0:01:06]} 10. b3 {[%emt 0:08:25]} Bb7 {[%emt 0:07:54]} 11. Bb2 {[%emt 0:01:49]} O-O {[%emt 0:02:23]} 12. g4 {[%emt 0:02:08]} a4 {[%emt 0:02:37]} 13. cxb5 {[%emt 0:14:44]} a3 {[%emt 0:01:43]} 14. bxc6 {[%emt 0:01:54]} axb2 {[%emt 0:00:35]} 15. cxb7 {[%emt 0:00:26]} bxa1=Q {[%emt 0:01:41]} 16. bxa8=Q {[%emt 0:00:57]} Qxd1 {[%emt 0:00:24]} 0-1

[Event "Portugal Open 2020"]
[Site "Lisbon"]
[Date "2020.01.26"]
[Round "2.21"]
[White "Butkiewicz, Lukasz"]
[Black "Roettgen, Juergen"]
[Result "1-0"]
[ECO "B49"]
[WhiteElo "2416"]
[BlackElo "2131"]
[Annotator "NA"]
[PlyCount "75"]
[EventDate "2020.01.25"]
[EventType "swiss"]
[EventCountry "POR"]
[SourceTitle "playchess.com"]
[Source "ChessBase"]
[SourceQuality "1"]
[TimeControl "5400+30"]

1. e4 {[%emt 0:00:00]} c5 {[%emt 0:00:00]} 2. Nf3 {[%emt 0:00:00]} e6 {[%emt 0:00:00]} 3. d4 {[%emt 0:00:00]} cxd4 {[%emt 0:00:00]} 4. Nxd4 {[%emt 0:00:00]} Nc6 {[%emt 0:00:01]} 5. Nc3 {[%emt 0:00:02]} Qc7 {[%emt 0:00:12]} 6. Be3 {[%emt 0:05:05]} a6 {[%emt 0:00:40]} 7. Be2 {[%emt 0:00:11]} Nf6 {[%emt 0:02:00]} 8. O-O {[%emt 0:00:11]} Bb4 {[%emt 0:01:50]} 9. Na4 {[%emt 0:00:14]} Be7 {[%emt 0:03:52]} 10. Nxc6 {[%emt 0:03:09]} bxc6 {[%emt 0:00:18]} 11. Nb6 {[%emt 0:00:09]} Rb8 {[%emt 0:00:38]} 12. Nxc8 {[%emt 0:00:07]} Qxc8 {[%emt 0:00:11]} 13. Bd4 {[%emt 0:05:25]} c5 {[%emt 0:06:36]} 14. Be5 {[%emt 0:02:34]} Rb6 {[%emt 0:00:19]} 15. Qd3 {[%emt 0:05:00]} O-O {[%emt 0:03:29]} 16. c4 {[%emt 0:01:40]} d6 {[%emt 0:11:18]} 17. Bc3 {[%emt 0:00:13]} Qc6 {[%emt 0:03:29]} 18. Bf3 {[%emt 0:06:30]} e5 {[%emt 0:05:22]} 19. g3 {[%emt 0:05:20]} Ne8 {[%emt 0:05:44]} 20. Bg2 {[%emt 0:03:28]} Nc7 {[%emt 0:03:35]} 21. f4 {[%emt 0:01:25]} Bf6 {[%emt 0:02:22]} 22. f5 {[%emt 0:01:08]} Ne8 {[%emt 0:00:46]} 23. Bf3 {[%emt 0:09:25]} Rb8 {[%emt 0:12:31]} 24. b3 {[%emt 0:01:32]} Bd8 {[%emt 0:03:20]} 25. Bd2 {[%emt 0:04:27]} Ra8 {[%emt 0:09:51]} 26. Rae1 {[%emt 0:05:59]} a5 {[%emt 0:05:00]} 27. Bd1 {[%emt 0:00:18]} Qc7 {[%emt 0:05:08]} 28. Kg2 {[%emt 0:01:30]} Ra7 {[%emt 0:02:18]} 29. h4 {[%emt 0:01:41]} Qc6 {[%emt 0:02:26]} 30. a4 {[%emt 0:02:33]} Bf6 {[%emt 0:04:50]} 31. Rh1 {[%emt 0:00:39]} g6 {[%emt 0:00:21]} 32. g4 {[%emt 0:03:25]} gxf5 {[%emt 0:00:10]} 33. gxf5 {[%emt 0:00:26]} Kh8 {[%emt 0:01:06]} 34. Kh3 {[%emt 0:02:08]} Bg7 {[%emt 0:00:54]} 35. Rhg1 {[%emt 0:01:16]} Nf6 {[%emt 0:01:36]} 36. Qf3 {[%emt 0:06:19]} Rg8 {[%emt 0:02:03]} 37. Rg3 {[%emt 0:00:26]} Rf8 38. Rgg1 1-0

[Event "Portugal Open 2020"]
[Site "Lisbon"]
[Date "2020.01.26"]
[Round "2.22"]
[White "Fidalgo, Daniel Neves"]
[Black "Savanovic, Aleksandar"]
[Result "0-1"]
[ECO "A13"]
[WhiteElo "2076"]
[BlackElo "2414"]
[Annotator "NA"]
[PlyCount "56"]
[EventDate "2020.01.25"]
[EventType "swiss"]
[EventCountry "POR"]
[SourceTitle "playchess.com"]
[Source "ChessBase"]
[SourceQuality "1"]
[TimeControl "5400+30"]

1. c4 {[%emt 0:00:00]} e6 {[%emt 0:01:54]} 2. Nf3 {[%emt 0:00:00]} d5 {[%emt 0:00:15]} 3. b3 {[%emt 0:00:12]} Nf6 {[%emt 0:00:09]} 4. g3 {[%emt 0:00:10]} d4 {[%emt 0:02:06]} 5. e3 {[%emt 0:02:22]} c5 {[%emt 0:00:10]} 6. exd4 {[%emt 0:00:37]} cxd4 {[%emt 0:00:08]} 7. Bg2 {[%emt 0:00:55]} Nc6 {[%emt 0:00:12]} 8. O-O {[%emt 0:01:30]} Be7 {[%emt 0:00:10]} 9. d3 {[%emt 0:00:55]} O-O {[%emt 0:02:32]} 10. a3 {[%emt 0:00:34]} a5 {[%emt 0:00:30]} 11. Re1 {[%emt 0:02:56]} Nd7 {[%emt 0:06:28]} 12. Nbd2 {[%emt 0:13:35]} h6 {[%emt 0:12:35]} 13. h4 {[%emt 0:02:58]} e5 {[%emt 0:04:19]} 14. Rb1 {[%emt 0:07:38]} f5 {[%emt 0:08:15]} 15. h5 {[%emt 0:10:07]} Kh8 {[%emt 0:01:53]} 16. Nh2 {[%emt 0:03:41]} Nc5 {[%emt 0:12:23]} 17. Ndf3 {[%emt 0:08:09]} e4 {[%emt 0:01:24]} 18. dxe4 {[%emt 0:00:08]} fxe4 {[%emt 0:00:07]} 19. Nd2 {[%emt 0:00:55]} e3 {[%emt 0:08:48]} 20. fxe3 {[%emt 0:00:44]} dxe3 {[%emt 0:00:10]} 21. Ndf3 {[%emt 0:00:51]} Qxd1 22. Rxd1 {[%emt 0:00:03]} e2 {[%emt 0:06:35]} 23. Re1 {[%emt 0:07:55]} Bf5 {[%emt 0:04:08]} 24. Rb2 {[%emt 0:00:24]} Nd3 {[%emt 0:00:24]} 25. Rbxe2 {[%emt 0:00:10]} Nxe1 {[%emt 0:00:32]} 26. Rxe1 {[%emt 0:00:04]} Rae8 {[%emt 0:02:23]} 27. Be3 {[%emt 0:03:15]} Bxa3 {[%emt 0:00:07]} 28. Nh4 {[%emt 0:02:00]} Rxe3 {[%emt 0:00:56]} 0-1

[Event "Portugal Open 2020"]
[Site "Lisbon"]
[Date "2020.01.26"]
[Round "2.24"]
[White "Xu, Yang"]
[Black "Sousa, Andre Ventura"]
[Result "0-1"]
[ECO "A05"]
[WhiteElo "2359"]
[BlackElo "2391"]
[Annotator "NA"]
[PlyCount "96"]
[EventDate "2020.01.25"]
[EventType "swiss"]
[EventCountry "POR"]
[SourceTitle "playchess.com"]
[Source "ChessBase"]
[SourceQuality "1"]
[TimeControl "5400+30"]

1. Nf3 {[%emt 0:00:00]} Nf6 {[%emt 0:03:00]} 2. g3 {[%emt 0:00:00]} g6 {[%emt 0:00:08]} 3. Bg2 {[%emt 0:00:00]} Bg7 {[%emt 0:00:04]} 4. O-O {[%emt 0:00:00]} d5 {[%emt 0:00:01]} 5. d4 {[%emt 0:00:00]} c6 {[%emt 0:00:04]} 6. c4 {[%emt 0:00:21]} dxc4 {[%emt 0:00:10]} 7. Ne5 {[%emt 0:02:25]} Ng4 {[%emt 0:00:08]} 8. Nf3 {[%emt 0:18:07]} O-O {[%emt 0:02:08]} 9. e4 {[%emt 0:02:55]} e5 {[%emt 0:08:31]} 10. h3 {[%emt 0:15:55]} exd4 {[%emt 0:00:03]} 11. hxg4 {[%emt 0:00:07]} Bxg4 {[%emt 0:00:06]} 12. Qe1 {[%emt 0:09:27]} Na6 {[%emt 0:12:22]} 13. Nh2 {[%emt 0:03:25]} Be6 {[%emt 0:01:46]} 14. f4 {[%emt 0:02:44]} Re8 {[%emt 0:04:05]} 15. Qd1 {[%emt 0:05:59]} Nc5 {[%emt 0:09:48]} 16. Nd2 {[%emt 0:10:03]} c3 {[%emt 0:05:26]} 17. Nb3 {[%emt 0:04:15]} Nxb3 18. axb3 {[%emt 0:00:19]} Qb6 {[%emt 0:06:09]} 19. Kh1 {[%emt 0:08:16]} Bxb3 {[%emt 0:00:20]} 20. Qf3 {[%emt 0:01:09]} cxb2 {[%emt 0:06:47]} 21. Bxb2 {[%emt 0:00:06]} Bc2 {[%emt 0:00:02]} 22. Ba3 {[%emt 0:06:12]} Bxe4 {[%emt 0:01:29]} 23. Qf2 {[%emt 0:00:30]} Bxg2+ {[%emt 0:05:52]} 24. Qxg2 {[%emt 0:00:07]} d3 {[%emt 0:02:09]} 25. Ra2 {[%emt 0:01:23]} Qb3 {[%emt 0:08:11]} 26. Bc1 {[%emt 0:01:52]} c5 {[%emt 0:00:28]} 27. f5 {[%emt 0:03:30]} gxf5 {[%emt 0:06:55]} 28. Ra3 {[%emt 0:01:02]} Qc4 {[%emt 0:01:01]} 29. Qf3 {[%emt 0:01:06]} Rad8 {[%emt 0:01:11]} 30. Rd1 {[%emt 0:01:47]} b5 {[%emt 0:04:46]} 31. Bg5 {[%emt 0:00:41]} f6 {[%emt 0:04:48]} 32. Be3 {[%emt 0:00:56]} Bf8 {[%emt 0:01:28]} 33. Rxa7 {[%emt 0:00:20]} Qe4 {[%emt 0:00:27]} 34. Bf4 {[%emt 0:01:02]} c4 {[%emt 0:00:16]} 35. Rc7 {[%emt 0:00:49]} Rc8 {[%emt 0:01:46]} 36. Rb7 {[%emt 0:00:33]} Rc5 {[%emt 0:01:14]} 37. Qxe4 {[%emt 0:00:10]} Rxe4 {[%emt 0:01:31]} 38. Nf3 {[%emt 0:00:55]} Rd5 {[%emt 0:00:18]} 39. Bd2 {[%emt 0:00:06]} Re2 {[%emt 0:02:45]} 40. Ra1 {[%emt 0:00:21]} Rxd2 {[%emt 0:00:52]} 41. Nxd2 {[%emt 0:00:06]} c3 {[%emt 0:00:02]} 42. Kg2 {[%emt 0:01:27]} cxd2 {[%emt 0:00:16]} 43. Rd1 {[%emt 0:00:20]} Bb4 {[%emt 0:00:23]} 44. Rb8+ {[%emt 0:00:27]} Kg7 {[%emt 0:00:05]} 45. Rb7+ {[%emt 0:00:14]} Kg6 {[%emt 0:00:10]} 46. Kf3 {[%emt 0:00:07]} Re5 {[%emt 0:00:15]} 47. Ra7 {[%emt 0:00:06]} Bc3 {[%emt 0:00:18]} 48. Rh1 {[%emt 0:00:25]} Re1 {[%emt 0:00:24]} 0-1

[Event "Portugal Open 2020"]
[Site "Lisbon"]
[Date "2020.01.26"]
[Round "2.25"]
[White "Vasli, Aref"]
[Black "Fernandes, Ricardo Paulos"]
[Result "1-0"]
[ECO "A45"]
[WhiteElo "2391"]
[BlackElo "2100"]
[Annotator "NA"]
[PlyCount "125"]
[EventDate "2020.01.25"]
[EventType "swiss"]
[EventCountry "POR"]
[SourceTitle "playchess.com"]
[Source "ChessBase"]
[SourceQuality "1"]
[TimeControl "5400+30"]

1. d4 {[%emt 0:00:00]} Nf6 {[%emt 0:06:04]} 2. Bg5 {[%emt 0:00:07]} e6 {[%emt 0:00:21]} 3. e3 {[%emt 0:04:19]} Be7 {[%emt 0:00:14]} 4. Nd2 {[%emt 0:01:21]} d5 {[%emt 0:01:28]} 5. Bd3 {[%emt 0:00:20]} Nbd7 {[%emt 0:00:12]} 6. Ngf3 {[%emt 0:00:14]} c5 {[%emt 0:02:36]} 7. c3 {[%emt 0:00:10]} b6 {[%emt 0:05:53]} 8. O-O {[%emt 0:00:27]} Bb7 {[%emt 0:00:08]} 9. Qb1 {[%emt 0:06:49]} h6 {[%emt 0:04:20]} 10. Bf4 {[%emt 0:01:55]} O-O {[%emt 0:04:35]} 11. h3 {[%emt 0:01:58]} Rc8 {[%emt 0:02:22]} 12. Re1 {[%emt 0:00:16]} c4 {[%emt 0:01:43]} 13. Bc2 {[%emt 0:03:40]} b5 {[%emt 0:00:05]} 14. e4 {[%emt 0:11:27]} dxe4 {[%emt 0:02:48]} 15. Nxe4 {[%emt 0:00:12]} Nxe4 {[%emt 0:00:04]} 16. Bxe4 {[%emt 0:00:24]} Bxe4 {[%emt 0:02:23]} 17. Qxe4 {[%emt 0:01:24]} Nf6 {[%emt 0:00:13]} 18. Qc2 {[%emt 0:01:44]} Nd5 {[%emt 0:00:37]} 19. Bd2 {[%emt 0:05:57]} Bd6 {[%emt 0:04:48]} 20. Re4 {[%emt 0:03:21]} Qf6 {[%emt 0:02:31]} 21. Rae1 {[%emt 0:10:02]} Bf4 {[%emt 0:03:00]} 22. Qc1 {[%emt 0:04:33]} Bxd2 {[%emt 0:02:44]} 23. Qxd2 {[%emt 0:00:03]} Qe7 {[%emt 0:01:50]} 24. Rg4 {[%emt 0:07:07]} Nf6 {[%emt 0:03:16]} 25. Rh4 {[%emt 0:02:36]} Rfd8 {[%emt 0:01:15]} 26. Ne5 {[%emt 0:01:36]} Rd5 {[%emt 0:02:21]} 27. Rf4 {[%emt 0:01:35]} Rf8 {[%emt 0:05:14]} 28. a4 {[%emt 0:08:20]} a6 {[%emt 0:02:25]} 29. axb5 {[%emt 0:00:16]} axb5 {[%emt 0:00:12]} 30. Ra1 {[%emt 0:02:45]} Qc7 {[%emt 0:05:43]} 31. Qe3 {[%emt 0:06:15]} Nd7 {[%emt 0:08:24]} 32. Ng4 {[%emt 0:01:35]} h5 {[%emt 0:01:46]} 33. Nh2 {[%emt 0:01:38]} g6 {[%emt 0:01:07]} 34. Nf3 {[%emt 0:01:38]} Kg7 {[%emt 0:00:07]} 35. h4 {[%emt 0:00:28]} Nf6 {[%emt 0:04:19]} 36. Ne5 {[%emt 0:00:14]} Nd7 {[%emt 0:00:17]} 37. Nf3 {[%emt 0:01:24]} Nf6 {[%emt 0:00:04]} 38. g3 {[%emt 0:00:29]} Rd7 {[%emt 0:02:17]} 39. Qe2 {[%emt 0:02:22]} Nd5 {[%emt 0:00:32]} 40. Re4 {[%emt 0:00:02]} Nf6 {[%emt 0:00:16]} 41. Re5 {[%emt 0:00:57]} Rd5 {[%emt 0:00:09]} 42. Rg5 {[%emt 0:01:00]} Rfd8 {[%emt 0:02:05]} 43. Rxd5 {[%emt 0:01:13]} Rxd5 {[%emt 0:00:33]} 44. Ng5 {[%emt 0:00:33]} Nh7 {[%emt 0:02:30]} 45. Ne4 {[%emt 0:00:40]} Nf6 {[%emt 0:01:41]} 46. Nc5 {[%emt 0:02:23]} Nd7 {[%emt 0:02:46]} 47. Na6 {[%emt 0:00:13]} Qa7 {[%emt 0:00:58]} 48. Ra3 {[%emt 0:00:27]} Rf5 {[%emt 0:00:51]} 49. Nb4 {[%emt 0:02:03]} Qb7 {[%emt 0:00:07]} 50. Nc2 {[%emt 0:00:07]} Rd5 {[%emt 0:01:29]} 51. Ra1 {[%emt 0:00:38]} Nf6 {[%emt 0:00:06]} 52. Qf3 {[%emt 0:01:31]} Rd7 {[%emt 0:01:21]} 53. Qf4 {[%emt 0:00:03]} Qe4 {[%emt 0:01:19]} 54. Qxe4 {[%emt 0:01:18]} Nxe4 {[%emt 0:00:01]} 55. Ra6 {[%emt 0:00:35]} Rd6 {[%emt 0:00:31]} 56. Ra7 {[%emt 0:00:31]} Rb6 {[%emt 0:00:23]} 57. Ne3 {[%emt 0:01:24]} b4 {[%emt 0:01:58]} 58. Nxc4 {[%emt 0:00:44]} bxc3 {[%emt 0:00:05]} 59. bxc3 {[%emt 0:00:08]} Rb1+ {[%emt 0:00:05]} 60. Kg2 {[%emt 0:00:11]} Rc1 {[%emt 0:01:07]} 61. Ne5 {[%emt 0:00:17]} Rxc3 {[%emt 0:03:39]} 62. Rxf7+ {[%emt 0:00:11]} Kg8 {[%emt 0:00:06]} 63. Rf4 {[%emt 0:00:12]} 1-0